[Event "Titled Tuesday Blitz August 17 2021"]
[White "Santos Flores, Alberto"]
[Black "Shimelkov, Vasiliy"]
[WhiteFideId "3601234"]
[BlackFideId "13701630"]
[WhiteElo "2293"]
[BlackElo "2073"]
[Result "0-1"]
[Round "01"]
[TimeControl "180+1"]
[Date "2021.08.18"]
[WhiteClock "0:00:11"]
[BlackClock "0:00:40"]

1. d4 {[%clk 0:02:58]}  d5 {[%clk 0:02:59]} 2. Nf3 {[%clk 0:02:57]}  Nf6 {[%clk 0:02:59]} 3. c4 {[%clk 0:02:56]}  e6 {[%clk 0:02:59]} 4. Nc3 {[%clk 0:02:55]}  Be7 {[%clk 0:02:57]} 5. Bf4 {[%clk 0:02:54]}  O-O {[%clk 0:02:56]} 6. e3 {[%clk 0:02:54]}  b6 {[%clk 0:02:56]} 7. Bd3 {[%clk 0:02:47]}  Bb7 {[%clk 0:02:55]} 8. O-O {[%clk 0:02:43]}  c5 {[%clk 0:02:54]} 9. Rc1 {[%clk 0:02:39]}  Na6 {[%clk 0:02:53]} 10. a3 {[%clk 0:02:35]}  Nc7 {[%clk 0:02:50]} 11. dxc5 {[%clk 0:02:08]}  bxc5 {[%clk 0:02:49]} 12. Bxc7 {[%clk 0:02:01]}  Qxc7 {[%clk 0:02:48]} 13. cxd5 {[%clk 0:02:02]}  exd5 {[%clk 0:02:46]} 14. b4 {[%clk 0:02:02]}  c4 {[%clk 0:02:35]} 15. Bb1 {[%clk 0:02:02]}  a5 {[%clk 0:02:35]} 16. Nb5 {[%clk 0:01:33]}  Qb6 {[%clk 0:02:22]} 17. Nbd4 {[%clk 0:01:33]}  axb4 {[%clk 0:02:17]} 18. axb4 {[%clk 0:01:34]}  Bxb4 {[%clk 0:02:13]} 19. Ne5 {[%clk 0:01:33]}  Rfe8 {[%clk 0:02:03]} 20. f4 {[%clk 0:01:30]}  Bd6 {[%clk 0:02:01]} 21. Ng4 {[%clk 0:01:19]}  Nxg4 {[%clk 0:01:57]} 22. Qxg4 {[%clk 0:01:20]}  Rxe3 {[%clk 0:01:46]} 23. Rcd1 {[%clk 0:01:02]}  Rd3 {[%clk 0:01:36]} 24. f5 {[%clk 0:00:42]}  Bc5 {[%clk 0:01:19]} 25. Bxd3 {[%clk 0:00:32]}  Bxd4+ {[%clk 0:01:17]} 26. Kh1 {[%clk 0:00:33]}  cxd3 {[%clk 0:01:16]} 27. Rf3 {[%clk 0:00:23]}  Bf6 {[%clk 0:01:07]} 28. Rfxd3 {[%clk 0:00:22]}  d4 {[%clk 0:01:06]} 29. h4 {[%clk 0:00:19]}  Qc6 {[%clk 0:01:00]} 30. Rg3 {[%clk 0:00:17]}  h6 {[%clk 0:00:55]} 31. h5 {[%clk 0:00:17]}  Qc2 {[%clk 0:00:50]} 32. Rgd3 {[%clk 0:00:14]}  Ra2 {[%clk 0:00:42]} 33. R1d2 {[%clk 0:00:13]}  Qxd2 {[%clk 0:00:40]} 34. Rxd2 {[%clk 0:00:11]}  Rxd2 {[%clk 0:00:40]} 0-1


[Site "https://www.chess.com"]

[Event "Titled Tuesday Blitz August 17 2021"]
[White "Seletsky, Grigory"]
[Black "Rodriguez Hernandez, Luis Daniel"]
[WhiteFideId "14112191"]
[BlackFideId "3506770"]
[WhiteElo "2492"]
[BlackElo "2133"]
[Result "0-1"]
[Round "01"]
[TimeControl "180+1"]
[Date "2021.08.17"]
[WhiteClock "0:00:01"]
[BlackClock "0:00:10"]

1. d4 {[%clk 0:02:58]}  Nf6 {[%clk 0:02:54]} 2. c3 {[%clk 0:02:58]}  g6 {[%clk 0:02:39]} 3. Bf4 {[%clk 0:02:54]}  Bg7 {[%clk 0:02:39]} 4. h3 {[%clk 0:02:54]}  O-O {[%clk 0:02:40]} 5. e3 {[%clk 0:02:54]}  d6 {[%clk 0:02:40]} 6. Nf3 {[%clk 0:02:53]}  Nc6 {[%clk 0:02:40]} 7. Bh2 {[%clk 0:02:52]}  Bf5 {[%clk 0:02:36]} 8. Bd3 {[%clk 0:02:48]}  Bxd3 {[%clk 0:02:32]} 9. Qxd3 {[%clk 0:02:46]}  Re8 {[%clk 0:02:32]} 10. O-O {[%clk 0:02:42]}  e5 {[%clk 0:02:33]} 11. Qc2 {[%clk 0:02:28]}  e4 {[%clk 0:02:31]} 12. Nfd2 {[%clk 0:02:27]}  Qd7 {[%clk 0:02:18]} 13. a3 {[%clk 0:02:22]}  Qf5 {[%clk 0:02:17]} 14. c4 {[%clk 0:02:22]}  h5 {[%clk 0:01:53]} 15. Nc3 {[%clk 0:02:20]}  Rad8 {[%clk 0:01:12]} 16. b4 {[%clk 0:02:19]}  Rd7 {[%clk 0:01:03]} 17. b5 {[%clk 0:02:18]}  Nd8 {[%clk 0:00:59]} 18. a4 {[%clk 0:02:19]}  Rde7 {[%clk 0:00:57]} 19. Nb3 {[%clk 0:01:56]}  Ne6 {[%clk 0:00:56]} 20. Rad1 {[%clk 0:01:51]}  Ng5 {[%clk 0:00:56]} 21. Kh1 {[%clk 0:01:50]}  Nxh3 {[%clk 0:00:48]} 22. gxh3 {[%clk 0:01:49]}  Qxh3 {[%clk 0:00:42]} 23. Rg1 {[%clk 0:01:44]}  Ng4 {[%clk 0:00:41]} 24. Rg2 {[%clk 0:01:44]}  c6 {[%clk 0:00:27]} 25. Ne2 {[%clk 0:01:31]}  Qf3 {[%clk 0:00:16]} 26. Ng1 {[%clk 0:01:29]}  Nxf2+ {[%clk 0:00:16]} 27. Qxf2 {[%clk 0:01:27]}  Qxd1 {[%clk 0:00:17]} 28. Nd2 {[%clk 0:01:21]}  Bxd4 {[%clk 0:00:17]} 29. exd4 {[%clk 0:01:20]}  e3 {[%clk 0:00:18]} 30. Qf6 {[%clk 0:01:19]}  exd2 {[%clk 0:00:16]} 31. Bxd6 {[%clk 0:00:42]}  Re6 {[%clk 0:00:16]} 32. Qf4 {[%clk 0:00:36]}  Re2 {[%clk 0:00:13]} 33. Rg5 {[%clk 0:00:27]}  Re1 {[%clk 0:00:10]} 34. Be5 {[%clk 0:00:16]}  R8xe5 {[%clk 0:00:10]} 35. dxe5 {[%clk 0:00:14]}  Qc2 {[%clk 0:00:11]} 36. Qf6 {[%clk 0:00:12]}  d1=Q {[%clk 0:00:10]} 37. e6 {[%clk 0:00:11]}  Qe4+ {[%clk 0:00:09]} 38. Kh2 {[%clk 0:00:08]}  Qd2+ {[%clk 0:00:09]} 39. Kh3 {[%clk 0:00:03]}  Re3+ {[%clk 0:00:09]} 40. Rg3 {[%clk 0:00:01]}  Qdg2# {[%clk 0:00:10]} 0-1


[Site "https://www.chess.com"]

[Event "Titled Tuesday Blitz August 17 2021"]
[White "Serikbay, Assel"]
[Black "Sychev, Klementy"]
[WhiteFideId "13706799"]
[BlackFideId "4114060"]
[WhiteElo "2044"]
[BlackElo "2615"]
[Result "0-1"]
[Round "01"]
[TimeControl "180+1"]
[Date "2021.08.17"]
[WhiteClock "0:00:09"]
[BlackClock "0:01:24"]

1. d4 {[%clk 0:02:57]}  Nf6 {[%clk 0:02:58]} 2. c4 {[%clk 0:02:56]}  e6 {[%clk 0:02:58]} 3. g3 {[%clk 0:02:55]}  c6 {[%clk 0:02:55]} 4. Bg2 {[%clk 0:02:53]}  d5 {[%clk 0:02:55]} 5. Nf3 {[%clk 0:02:52]}  Be7 {[%clk 0:02:54]} 6. O-O {[%clk 0:02:51]}  O-O {[%clk 0:02:54]} 7. Qc2 {[%clk 0:02:47]}  b6 {[%clk 0:02:53]} 8. Nbd2 {[%clk 0:02:44]}  a5 {[%clk 0:02:50]} 9. e4 {[%clk 0:02:44]}  Na6 {[%clk 0:02:50]} 10. a3 {[%clk 0:02:38]}  Bb7 {[%clk 0:02:47]} 11. Rd1 {[%clk 0:02:21]}  Rc8 {[%clk 0:02:43]} 12. b3 {[%clk 0:01:58]}  c5 {[%clk 0:02:41]} 13. exd5 {[%clk 0:01:44]}  exd5 {[%clk 0:02:41]} 14. Bb2 {[%clk 0:01:43]}  Re8 {[%clk 0:02:36]} 15. Rac1 {[%clk 0:01:15]}  Nc7 {[%clk 0:02:27]} 16. Nf1 {[%clk 0:01:12]}  Ne6 {[%clk 0:02:21]} 17. Qb1 {[%clk 0:00:45]}  cxd4 {[%clk 0:02:19]} 18. Nxd4 {[%clk 0:00:44]}  Nxd4 {[%clk 0:02:19]} 19. Bxd4 {[%clk 0:00:44]}  Bxa3 {[%clk 0:02:18]} 20. Rc2 {[%clk 0:00:43]}  Bc5 {[%clk 0:01:59]} 21. Bxf6 {[%clk 0:00:32]}  Qxf6 {[%clk 0:02:00]} 22. cxd5 {[%clk 0:00:31]}  Re5 {[%clk 0:01:49]} 23. Qc1 {[%clk 0:00:18]}  Bxf2+ {[%clk 0:01:39]} 24. Kh1 {[%clk 0:00:18]}  Rxc2 {[%clk 0:01:37]} 25. Qxc2 {[%clk 0:00:18]}  Bc5 {[%clk 0:01:38]} 26. Nd2 {[%clk 0:00:17]}  Rxd5 {[%clk 0:01:34]} 27. Qe4 {[%clk 0:00:15]}  Rxd2 {[%clk 0:01:24]} 28. Qe8+ {[%clk 0:00:09]}  Bf8 {[%clk 0:01:24]} 0-1


[Site "https://www.chess.com"]

[Event "Titled Tuesday Blitz August 17 2021"]
[White "Shapiro, David"]
[Black "Jaiswal, Rupesh"]
[WhiteFideId "24133523"]
[BlackFideId "12300870"]
[WhiteElo "2234"]
[BlackElo "2114"]
[Result "1-0"]
[Round "01"]
[TimeControl "180+1"]
[Date "2021.08.18"]
[WhiteClock "0:00:05"]
[BlackClock "0:00:09"]

1. d4 {[%clk 0:02:58]}  Nf6 {[%clk 0:02:59]} 2. c4 {[%clk 0:02:56]}  g6 {[%clk 0:02:59]} 3. Nc3 {[%clk 0:02:56]}  Bg7 {[%clk 0:02:59]} 4. e4 {[%clk 0:02:56]}  d6 {[%clk 0:02:59]} 5. Bd3 {[%clk 0:02:56]}  O-O {[%clk 0:02:58]} 6. Nge2 {[%clk 0:02:56]}  c5 {[%clk 0:02:55]} 7. d5 {[%clk 0:02:51]}  a6 {[%clk 0:02:53]} 8. a4 {[%clk 0:02:49]}  e6 {[%clk 0:02:42]} 9. O-O {[%clk 0:02:46]}  exd5 {[%clk 0:02:42]} 10. exd5 {[%clk 0:02:47]}  Nbd7 {[%clk 0:02:40]} 11. b3 {[%clk 0:02:43]}  Re8 {[%clk 0:02:16]} 12. Bb2 {[%clk 0:02:36]}  Ne5 {[%clk 0:02:07]} 13. Bc2 {[%clk 0:02:31]}  Qb6 {[%clk 0:01:54]} 14. a5 {[%clk 0:02:26]}  Qc7 {[%clk 0:01:51]} 15. h3 {[%clk 0:02:22]}  Bf5 {[%clk 0:00:47]} 16. Bxf5 {[%clk 0:02:19]}  gxf5 {[%clk 0:00:48]} 17. Ng3 {[%clk 0:02:11]}  f4 {[%clk 0:00:47]} 18. Nf5 {[%clk 0:02:11]}  f3 {[%clk 0:00:44]} 19. g3 {[%clk 0:01:57]}  Qd7 {[%clk 0:00:43]} 20. Qc2 {[%clk 0:01:55]}  Bh8 {[%clk 0:00:29]} 21. Kh2 {[%clk 0:01:52]}  Ng6 {[%clk 0:00:27]} 22. Na4 {[%clk 0:01:50]}  Re2 {[%clk 0:00:25]} 23. Qd3 {[%clk 0:01:37]}  Rae8 {[%clk 0:00:20]} 24. Qxf3 {[%clk 0:01:27]}  Qd8 {[%clk 0:00:10]} 25. Ne3 {[%clk 0:01:09]}  Rxb2 {[%clk 0:00:06]} 26. Nxb2 {[%clk 0:01:08]}  Ne4 {[%clk 0:00:07]} 27. Nd3 {[%clk 0:00:58]}  Nd2 {[%clk 0:00:07]} 28. Qg4 {[%clk 0:00:57]}  Nxf1+ {[%clk 0:00:07]} 29. Rxf1 {[%clk 0:00:58]}  Qc8 {[%clk 0:00:06]} 30. Qxc8 {[%clk 0:00:56]}  Rxc8 {[%clk 0:00:07]} 31. Nf5 {[%clk 0:00:56]}  Rd8 {[%clk 0:00:08]} 32. Re1 {[%clk 0:00:56]}  Bf6 {[%clk 0:00:08]} 33. g4 {[%clk 0:00:47]}  Bc3 {[%clk 0:00:07]} 34. Re4 {[%clk 0:00:37]}  Bxa5 {[%clk 0:00:07]} 35. Nf4 {[%clk 0:00:38]}  Kf8 {[%clk 0:00:07]} 36. Nh5 {[%clk 0:00:34]}  Bc3 {[%clk 0:00:06]} 37. f4 {[%clk 0:00:28]}  b5 {[%clk 0:00:06]} 38. g5 {[%clk 0:00:26]}  b4 {[%clk 0:00:04]} 39. Nh6 {[%clk 0:00:20]}  a5 {[%clk 0:00:04]} 40. f5 {[%clk 0:00:20]}  Be5+ {[%clk 0:00:03]} 41. Kg2 {[%clk 0:00:19]}  Ne7 {[%clk 0:00:03]} 42. f6 {[%clk 0:00:20]}  Ng6 {[%clk 0:00:04]} 43. Ng4 {[%clk 0:00:18]}  a4 {[%clk 0:00:04]} 44. bxa4 {[%clk 0:00:19]}  Ra8 {[%clk 0:00:03]} 45. Nxe5 {[%clk 0:00:14]}  Nxe5 {[%clk 0:00:04]} 46. Ng3 {[%clk 0:00:10]}  Rxa4 {[%clk 0:00:04]} 47. Nf5 {[%clk 0:00:10]}  Ra6 {[%clk 0:00:05]} 48. Re2 {[%clk 0:00:08]}  b3 {[%clk 0:00:05]} 49. Rb2 {[%clk 0:00:09]}  Rb6 {[%clk 0:00:06]} 50. Ne3 {[%clk 0:00:09]}  Rb4 {[%clk 0:00:06]} 51. Kf2 {[%clk 0:00:09]}  Ke8 {[%clk 0:00:07]} 52. Ke2 {[%clk 0:00:09]}  Kd7 {[%clk 0:00:07]} 53. Kd2 {[%clk 0:00:09]}  Kc7 {[%clk 0:00:08]} 54. Kc3 {[%clk 0:00:09]}  Kb6 {[%clk 0:00:08]} 55. Rxb3 {[%clk 0:00:10]}  Rxb3+ {[%clk 0:00:08]} 56. Kxb3 {[%clk 0:00:11]}  Nf3 {[%clk 0:00:09]} 57. Nf5 {[%clk 0:00:10]}  Kc7 {[%clk 0:00:09]} 58. h4 {[%clk 0:00:10]}  Kd7 {[%clk 0:00:08]} 59. Kc3 {[%clk 0:00:10]}  Ne5 {[%clk 0:00:08]} 60. Ne3 {[%clk 0:00:07]}  Nf3 {[%clk 0:00:08]} 61. Nf5 {[%clk 0:00:07]}  Ne5 {[%clk 0:00:08]} 62. Nh6 {[%clk 0:00:06]}  Ke8 {[%clk 0:00:06]} 63. Kb3 {[%clk 0:00:07]}  Nf3 {[%clk 0:00:06]} 64. Nf5 {[%clk 0:00:07]}  Kd7 {[%clk 0:00:04]} 65. Ka4 {[%clk 0:00:07]}  Ne5 {[%clk 0:00:04]} 66. Kb5 {[%clk 0:00:08]}  Ng6 {[%clk 0:00:03]} 67. h5 {[%clk 0:00:07]}  Ne5 {[%clk 0:00:03]} 68. Nh6 {[%clk 0:00:06]}  Ke8 {[%clk 0:00:03]} 69. Nf5 {[%clk 0:00:06]}  Kd7 {[%clk 0:00:03]} 70. Ne3 {[%clk 0:00:06]}  Ke8 {[%clk 0:00:04]} 71. Kb6 {[%clk 0:00:05]}  Kd7 {[%clk 0:00:05]} 72. Kb7 {[%clk 0:00:06]}  Kd8 {[%clk 0:00:05]} 73. Nf5 {[%clk 0:00:05]}  Kd7 {[%clk 0:00:06]} 74. Nh6 {[%clk 0:00:05]}  Ke8 {[%clk 0:00:06]} 75. Kc7 {[%clk 0:00:05]}  Nxc4 {[%clk 0:00:05]} 76. Nf5 {[%clk 0:00:06]}  Kf8 {[%clk 0:00:05]} 77. Nxd6 {[%clk 0:00:06]}  Nxd6 {[%clk 0:00:06]} 78. Kxd6 {[%clk 0:00:07]}  c4 {[%clk 0:00:06]} 79. Ke5 {[%clk 0:00:04]}  c3 {[%clk 0:00:07]} 80. d6 {[%clk 0:00:04]}  c2 {[%clk 0:00:08]} 81. d7 {[%clk 0:00:04]}  c1=Q {[%clk 0:00:09]} 82. d8=Q# {[%clk 0:00:05]} 1-0


[Site "https://www.chess.com"]

[Event "Titled Tuesday Blitz August 17 2021"]
[White "Shimanov, Aleksandr"]
[Black "Yirik, Volkan"]
[WhiteFideId "4198603"]
[BlackFideId "6300782"]
[WhiteElo "2596"]
[BlackElo "2421"]
[Result "1-0"]
[Round "01"]
[TimeControl "180+1"]
[Date "2021.08.17"]
[WhiteClock "0:02:30"]
[BlackClock "0:02:41"]

1. b3 {[%clk 0:03:00]}  d5 {[%clk 0:02:58]} 2. Bb2 {[%clk 0:03:00]}  c6 {[%clk 0:02:58]} 3. Nf3 {[%clk 0:02:58]}  Bg4 {[%clk 0:02:58]} 4. e3 {[%clk 0:02:58]}  Nf6 {[%clk 0:02:55]} 5. h3 {[%clk 0:02:58]}  Bxf3 {[%clk 0:02:54]} 6. Qxf3 {[%clk 0:02:58]}  Nbd7 {[%clk 0:02:55]} 7. d4 {[%clk 0:02:56]}  e6 {[%clk 0:02:55]} 8. Nd2 {[%clk 0:02:56]}  Bd6 {[%clk 0:02:55]} 9. Bd3 {[%clk 0:02:56]}  Qc7 {[%clk 0:02:55]} 10. O-O {[%clk 0:02:55]}  e5 {[%clk 0:02:56]} 11. e4 {[%clk 0:02:55]}  O-O-O {[%clk 0:02:52]} 12. exd5 {[%clk 0:02:42]}  cxd5 {[%clk 0:02:45]} 13. dxe5 {[%clk 0:02:42]}  Nxe5 {[%clk 0:02:45]} 14. Qf5+ {[%clk 0:02:39]}  Qd7 {[%clk 0:02:43]} 15. Bxe5 {[%clk 0:02:31]}  Bxe5 {[%clk 0:02:41]} 16. Qxe5 {[%clk 0:02:30]} 1-0


[Site "https://www.chess.com"]

[Event "Titled Tuesday Blitz August 17 2021"]
[White "Silva, Miguel Antonio Neto"]
[Black "Onyshchuk, Volodymyr"]
[WhiteFideId "1911929"]
[BlackFideId "14114038"]
[WhiteElo "2283"]
[BlackElo "2603"]
[Result "0-1"]
[Round "01"]
[TimeControl "180+1"]
[Date "2021.08.17"]
[WhiteClock "0:00:14"]
[BlackClock "0:00:28"]

1. e4 {[%clk 0:02:59]}  e5 {[%clk 0:02:57]} 2. Nf3 {[%clk 0:02:57]}  Nc6 {[%clk 0:02:56]} 3. Bb5 {[%clk 0:02:56]}  Nf6 {[%clk 0:02:56]} 4. O-O {[%clk 0:02:53]}  Nxe4 {[%clk 0:02:55]} 5. d4 {[%clk 0:02:52]}  Nd6 {[%clk 0:02:55]} 6. dxe5 {[%clk 0:02:40]}  Nxb5 {[%clk 0:02:54]} 7. a4 {[%clk 0:02:40]}  Nbd4 {[%clk 0:02:47]} 8. Nxd4 {[%clk 0:02:40]}  d5 {[%clk 0:02:47]} 9. exd6 {[%clk 0:02:35]}  Bxd6 {[%clk 0:02:39]} 10. Re1+ {[%clk 0:02:29]}  Be7 {[%clk 0:02:28]} 11. Nxc6 {[%clk 0:02:26]}  Qxd1 {[%clk 0:02:27]} 12. Rxd1 {[%clk 0:02:26]}  bxc6 {[%clk 0:02:28]} 13. Bf4 {[%clk 0:02:13]}  Bf5 {[%clk 0:02:27]} 14. Rd2 {[%clk 0:01:54]}  Rb8 {[%clk 0:01:55]} 15. c3 {[%clk 0:01:42]}  Rb7 {[%clk 0:01:24]} 16. Na3 {[%clk 0:01:41]}  Be6 {[%clk 0:01:23]} 17. Be5 {[%clk 0:01:35]}  f6 {[%clk 0:01:18]} 18. Bd4 {[%clk 0:01:34]}  Kf7 {[%clk 0:01:18]} 19. a5 {[%clk 0:01:25]}  c5 {[%clk 0:01:15]} 20. Be3 {[%clk 0:01:24]}  Rhb8 {[%clk 0:01:15]} 21. Rb1 {[%clk 0:01:14]}  Rb3 {[%clk 0:01:14]} 22. Nc2 {[%clk 0:00:36]}  Rxb2 {[%clk 0:01:09]} 23. Rxb2 {[%clk 0:00:36]}  Rxb2 {[%clk 0:01:08]} 24. f3 {[%clk 0:00:36]}  Ra2 {[%clk 0:01:05]} 25. Ne1 {[%clk 0:00:32]}  Rxa5 {[%clk 0:01:02]} 26. Nd3 {[%clk 0:00:31]}  g5 {[%clk 0:01:02]} 27. Kf2 {[%clk 0:00:31]}  c4 {[%clk 0:01:01]} 28. Nb4 {[%clk 0:00:29]}  Bxb4 {[%clk 0:00:58]} 29. cxb4 {[%clk 0:00:29]}  Ra3 {[%clk 0:00:58]} 30. Rc2 {[%clk 0:00:21]}  a6 {[%clk 0:00:56]} 31. Bd4 {[%clk 0:00:18]}  c6 {[%clk 0:00:53]} 32. g4 {[%clk 0:00:17]}  Kg6 {[%clk 0:00:50]} 33. Rd2 {[%clk 0:00:16]}  Bd5 {[%clk 0:00:50]} 34. Be3 {[%clk 0:00:15]}  c3 {[%clk 0:00:49]} 35. Rc2 {[%clk 0:00:15]}  Rb3 {[%clk 0:00:48]} 36. Bd4 {[%clk 0:00:15]}  Rxb4 {[%clk 0:00:46]} 37. Ke3 {[%clk 0:00:16]}  Rb1 {[%clk 0:00:41]} 38. Rxc3 {[%clk 0:00:16]}  Rf1 {[%clk 0:00:37]} 39. Ke2 {[%clk 0:00:16]}  Rh1 {[%clk 0:00:37]} 40. Bf2 {[%clk 0:00:15]}  Rxh2 {[%clk 0:00:37]} 41. Kf1 {[%clk 0:00:16]}  h5 {[%clk 0:00:31]} 42. Kg1 {[%clk 0:00:15]}  Rh3 {[%clk 0:00:31]} 43. gxh5+ {[%clk 0:00:13]}  Kxh5 {[%clk 0:00:30]} 44. Kg2 {[%clk 0:00:13]}  g4 {[%clk 0:00:29]} 45. Rd3 {[%clk 0:00:13]}  Bxf3+ {[%clk 0:00:28]} 46. Kg1 {[%clk 0:00:14]}  Rh1# {[%clk 0:00:28]} 0-1


[Site "https://www.chess.com"]

[Event "Titled Tuesday Blitz August 17 2021"]
[White "Siva Mahadevan"]
[Black "Martin Carmona, Gaston Manuel"]
[WhiteFideId "25043153"]
[BlackFideId "22284567"]
[WhiteElo "2203"]
[BlackElo "2161"]
[Result "0-1"]
[Round "01"]
[TimeControl "180+1"]
[Date "2021.08.17"]
[WhiteClock "0:00:03"]
[BlackClock "0:00:21"]

1. e4 {[%clk 0:03:00]}  e5 {[%clk 0:02:56]} 2. Nf3 {[%clk 0:03:00]}  Nc6 {[%clk 0:02:56]} 3. Bb5 {[%clk 0:03:00]}  Nf6 {[%clk 0:02:56]} 4. d3 {[%clk 0:02:59]}  Bc5 {[%clk 0:02:56]} 5. Bxc6 {[%clk 0:02:58]}  dxc6 {[%clk 0:02:56]} 6. Nbd2 {[%clk 0:02:57]}  Be6 {[%clk 0:02:02]} 7. O-O {[%clk 0:02:53]}  Nd7 {[%clk 0:01:58]} 8. Nb3 {[%clk 0:02:52]}  Bb6 {[%clk 0:01:58]} 9. Ng5 {[%clk 0:02:51]}  Bxb3 {[%clk 0:01:56]} 10. axb3 {[%clk 0:02:52]}  f6 {[%clk 0:01:57]} 11. Nf3 {[%clk 0:02:14]}  Nf8 {[%clk 0:01:56]} 12. Nh4 {[%clk 0:02:13]}  Qd7 {[%clk 0:01:55]} 13. Kh1 {[%clk 0:02:09]}  Ne6 {[%clk 0:01:50]} 14. Be3 {[%clk 0:02:01]}  Bd4 {[%clk 0:01:34]} 15. c3 {[%clk 0:01:55]}  Bb6 {[%clk 0:01:34]} 16. Qg4 {[%clk 0:01:50]}  O-O {[%clk 0:01:22]} 17. Rad1 {[%clk 0:01:49]}  Qf7 {[%clk 0:01:20]} 18. Nf5 {[%clk 0:01:48]}  Kh8 {[%clk 0:01:19]} 19. d4 {[%clk 0:01:43]}  exd4 {[%clk 0:01:15]} 20. cxd4 {[%clk 0:01:44]}  Rad8 {[%clk 0:01:12]} 21. Rd3 {[%clk 0:01:41]}  Rfe8 {[%clk 0:00:57]} 22. Rfd1 {[%clk 0:01:39]}  Nf8 {[%clk 0:00:56]} 23. Bc1 {[%clk 0:01:30]}  Qd7 {[%clk 0:00:54]} 24. Rg3 {[%clk 0:00:56]}  g6 {[%clk 0:00:54]} 25. Bh6 {[%clk 0:00:53]}  Qe6 {[%clk 0:00:38]} 26. Bg7+ {[%clk 0:00:46]}  Kg8 {[%clk 0:00:38]} 27. Bxf8 {[%clk 0:00:25]}  Kxf8 {[%clk 0:00:39]} 28. Qh4 {[%clk 0:00:25]}  Rd7 {[%clk 0:00:30]} 29. Qh6+ {[%clk 0:00:13]}  Kg8 {[%clk 0:00:31]} 30. Qf4 {[%clk 0:00:10]}  Qxe4 {[%clk 0:00:28]} 31. Nh6+ {[%clk 0:00:08]}  Kg7 {[%clk 0:00:29]} 32. Qc1 {[%clk 0:00:07]}  Rxd4 {[%clk 0:00:24]} 33. Rf1 {[%clk 0:00:07]}  Qf4 {[%clk 0:00:21]} 34. Qxf4 {[%clk 0:00:02]}  Rxf4 {[%clk 0:00:22]} 35. Ng4 {[%clk 0:00:03]}  h5 {[%clk 0:00:21]} 0-1


[Site "https://www.chess.com"]

[Event "Titled Tuesday Blitz August 17 2021"]
[White "Slavin, Alexey"]
[Black "Noritsyn, Nikolay"]
[WhiteFideId "24104388"]
[BlackFideId "2604922"]
[WhiteElo "2262"]
[BlackElo "2527"]
[Result "0-1"]
[Round "01"]
[TimeControl "180+1"]
[Date "2021.08.17"]
[WhiteClock "0:00:13"]
[BlackClock "0:00:56"]

1. e4 {[%clk 0:03:00]}  c5 {[%clk 0:02:56]} 2. g3 {[%clk 0:02:59]}  d5 {[%clk 0:02:51]} 3. exd5 {[%clk 0:02:58]}  Qxd5 {[%clk 0:02:50]} 4. Qf3 {[%clk 0:02:58]}  Qd6 {[%clk 0:02:45]} 5. Nc3 {[%clk 0:02:56]}  Nc6 {[%clk 0:02:43]} 6. Bg2 {[%clk 0:02:49]}  Nh6 {[%clk 0:02:39]} 7. h3 {[%clk 0:02:37]}  Nf5 {[%clk 0:02:35]} 8. d3 {[%clk 0:02:34]}  Nfd4 {[%clk 0:02:32]} 9. Qd1 {[%clk 0:02:34]}  e6 {[%clk 0:02:14]} 10. Ne4 {[%clk 0:02:31]}  Qd8 {[%clk 0:02:11]} 11. c3 {[%clk 0:02:29]}  Nf5 {[%clk 0:02:11]} 12. Ne2 {[%clk 0:02:07]}  Be7 {[%clk 0:02:10]} 13. O-O {[%clk 0:02:07]}  O-O {[%clk 0:02:08]} 14. Qc2 {[%clk 0:01:55]}  Re8 {[%clk 0:02:04]} 15. Bd2 {[%clk 0:01:34]}  Bf8 {[%clk 0:02:02]} 16. Rad1 {[%clk 0:01:34]}  Qc7 {[%clk 0:01:59]} 17. Rfe1 {[%clk 0:01:24]}  b6 {[%clk 0:01:58]} 18. Bf4 {[%clk 0:01:21]}  e5 {[%clk 0:01:56]} 19. Bc1 {[%clk 0:01:20]}  Bb7 {[%clk 0:01:55]} 20. a3 {[%clk 0:01:12]}  Nce7 {[%clk 0:01:39]} 21. Ng5 {[%clk 0:00:54]}  Bxg2 {[%clk 0:01:37]} 22. Kxg2 {[%clk 0:00:54]}  h6 {[%clk 0:01:37]} 23. Ne4 {[%clk 0:00:50]}  Rad8 {[%clk 0:01:36]} 24. Kh2 {[%clk 0:00:43]}  Ng6 {[%clk 0:01:33]} 25. Ng1 {[%clk 0:00:42]}  Nfe7 {[%clk 0:01:32]} 26. Nf3 {[%clk 0:00:41]}  Nc6 {[%clk 0:01:32]} 27. Be3 {[%clk 0:00:38]}  f5 {[%clk 0:01:31]} 28. Ned2 {[%clk 0:00:33]}  Qf7 {[%clk 0:01:30]} 29. Nf1 {[%clk 0:00:30]}  f4 {[%clk 0:01:27]} 30. gxf4 {[%clk 0:00:27]}  Nxf4 {[%clk 0:01:25]} 31. Ng1 {[%clk 0:00:21]}  Bd6 {[%clk 0:01:19]} 32. Ng3 {[%clk 0:00:20]}  Bc7 {[%clk 0:01:09]} 33. Ne4 {[%clk 0:00:20]}  Re6 {[%clk 0:01:10]} 34. Ne2 {[%clk 0:00:19]}  Qh5 {[%clk 0:01:02]} 35. Nxf4 {[%clk 0:00:16]}  exf4 {[%clk 0:01:01]} 36. Bc1 {[%clk 0:00:16]}  Rde8 {[%clk 0:00:57]} 37. Kh1 {[%clk 0:00:16]}  Qxh3+ {[%clk 0:00:56]} 38. Kg1 {[%clk 0:00:15]}  f3 {[%clk 0:00:56]} 39. Ng3 {[%clk 0:00:13]}  Qg2# {[%clk 0:00:56]} 0-1


[Site "https://www.chess.com"]

[Event "Titled Tuesday Blitz August 17 2021"]
[White "Sliwicki, Damian"]
[Black "Le, Tuan Minh"]
[WhiteFideId "1127128"]
[BlackFideId "12401153"]
[WhiteElo "2142"]
[BlackElo "2450"]
[Result "0-1"]
[Round "01"]
[TimeControl "180+1"]
[Date "2021.08.17"]
[WhiteClock "0:00:11"]
[BlackClock "0:00:49"]

1. e4 {[%clk 0:02:50]}  c5 {[%clk 0:03:00]} 2. Nf3 {[%clk 0:02:47]}  Nf6 {[%clk 0:03:00]} 3. Nc3 {[%clk 0:02:44]}  d5 {[%clk 0:03:00]} 4. e5 {[%clk 0:02:39]}  Nfd7 {[%clk 0:02:59]} 5. Nxd5 {[%clk 0:02:31]}  Nxe5 {[%clk 0:02:58]} 6. Nxe5 {[%clk 0:02:30]}  Qxd5 {[%clk 0:02:58]} 7. Bb5+ {[%clk 0:02:30]}  Nd7 {[%clk 0:02:53]} 8. Nxd7 {[%clk 0:02:24]}  Bxd7 {[%clk 0:02:38]} 9. Bxd7+ {[%clk 0:02:25]}  Qxd7 {[%clk 0:02:39]} 10. O-O {[%clk 0:02:25]}  g6 {[%clk 0:02:38]} 11. d3 {[%clk 0:02:24]}  Bg7 {[%clk 0:02:38]} 12. Qf3 {[%clk 0:02:18]}  O-O {[%clk 0:02:37]} 13. Be3 {[%clk 0:02:09]}  b6 {[%clk 0:02:36]} 14. Rab1 {[%clk 0:02:04]}  Rac8 {[%clk 0:02:35]} 15. h3 {[%clk 0:01:53]}  Rfe8 {[%clk 0:02:27]} 16. Rfe1 {[%clk 0:01:50]}  Qa4 {[%clk 0:02:27]} 17. Qe2 {[%clk 0:01:20]}  Qxa2 {[%clk 0:02:23]} 18. Ra1 {[%clk 0:01:21]}  Qxb2 {[%clk 0:02:23]} 19. Rxa7 {[%clk 0:01:22]}  Qf6 {[%clk 0:01:53]} 20. Qg4 {[%clk 0:01:13]}  Qc6 {[%clk 0:01:36]} 21. Bf4 {[%clk 0:00:47]}  e6 {[%clk 0:01:29]} 22. Be5 {[%clk 0:00:43]}  Bxe5 {[%clk 0:01:18]} 23. Rxe5 {[%clk 0:00:44]}  Ra8 {[%clk 0:01:11]} 24. Rxa8 {[%clk 0:00:35]}  Rxa8 {[%clk 0:01:12]} 25. Re1 {[%clk 0:00:30]}  Qd6 {[%clk 0:01:10]} 26. g3 {[%clk 0:00:30]}  Ra2 {[%clk 0:01:04]} 27. Re2 {[%clk 0:00:30]}  Qd5 {[%clk 0:00:58]} 28. f3 {[%clk 0:00:23]}  b5 {[%clk 0:00:55]} 29. Kg2 {[%clk 0:00:20]}  b4 {[%clk 0:00:55]} 30. Qf4 {[%clk 0:00:20]}  b3 {[%clk 0:00:51]} 31. Qb8+ {[%clk 0:00:12]}  Kg7 {[%clk 0:00:50]} 32. Re5 {[%clk 0:00:11]}  Rxc2+ {[%clk 0:00:49]} 33. Kg1 {[%clk 0:00:11]}  Qxf3 {[%clk 0:00:49]} 0-1


[Site "https://www.chess.com"]